fUST/lending_fUST_20240704
["ID","MTS","AMOUNT","RATE_DAILY","PERIOD"]
[331085557,1720072232557,-1290.86,0.00014234,2]
[331085558,1720072232566,-500.0,0.00014234,2]
[331085559,1720072232577,-500.0,0.00014234,2]
[331085560,1720072232587,-500.0,0.00014234,2]
[331085561,1720072232595,-746.49,0.00014234,2]
[331085562,1720072232604,-1084.07,0.00014234,2]
[331085563,1720072232615,-500.0,0.00014234,2]
[331085564,1720072232623,-500.0,0.00014234,2]
[331085565,1720072232633,-638.65,0.00014234,2]
[331085566,1720072232643,-553.11,0.00014234,2]
[331085567,1720072232652,-500.0,0.00014234,2]
[331085568,1720072232664,-500.0,0.00014234,2]
[331085569,1720072232674,-500.0,0.00014234,2]
[331085570,1720072232684,-500.0,0.00014234,2]
[331085571,1720072232693,-500.0,0.00014234,2]
[331085572,1720072232702,-313.55799383,0.00014234,2]
[331085573,1720072232713,-500.0,0.00014234,2]
[331085574,1720072232722,-500.0,0.00014234,2]
[331085575,1720072232731,-500.0,0.00014234,2]
[331085576,1720072232740,-500.0,0.00014234,2]
[331085577,1720072232749,-530.25,0.00014234,2]
[331085578,1720072232759,-500.0,0.00014234,2]
[331085579,1720072232769,-500.0,0.00014234,2]
[331085580,1720072232778,-500.0,0.00014234,2]
[331085581,1720072232787,-500.0,0.00014234,2]
[331085582,1720072232796,-500.0,0.00014234,2]
[331085583,1720072232806,-500.0,0.00014234,2]
[331085584,1720072232815,-2075.83,0.00014234,2]
[331085585,1720072232824,-500.0,0.00014234,2]
[331085586,1720072232836,-700.33,0.00014234,2]
[331085587,1720072232845,-500.0,0.00014234,2]
[331085588,1720072232855,-509.14396677,0.00014234,2]
[331085589,1720072232864,-510.13794083,0.00014234,2]
[331085590,1720072232874,-131.72974548,0.00014234,2]
[331085591,1720072232886,-613.78025452,0.00014234,2]
[331085592,1720072232896,-500.0,0.00014234,2]
[331085593,1720072232905,-404.70147485,0.00014234,2]
[331085606,1720072238067,-370.08852515,0.00014234,2]
[331085607,1720072238079,-500.0,0.00014234,2]
[331085608,1720072238089,-583.74,0.00014234,2]
[331085609,1720072238108,-500.0,0.00014234,2]
[331085610,1720072238120,-500.0,0.00014234,2]
[331085611,1720072238131,-500.0,0.00014234,2]
[331085612,1720072238140,-500.0,0.00014234,2]
[331085613,1720072238150,-500.0,0.00014234,2]
[331085614,1720072238160,-500.0,0.00014234,2]
[331085615,1720072238171,-500.0,0.00014234,2]
[331085616,1720072238180,-500.0,0.00014234,2]
[331085617,1720072238190,-1002.68,0.00014234,2]
[331085618,1720072238199,-7954.05,0.00014234,2]
[331085619,1720072238208,-500.0,0.00014234,2]
[331085620,1720072238218,-571.80783564,0.00014234,2]
[331085621,1720072238228,-500.0,0.00014234,2]
[331085622,1720072238238,-5431.38972809,0.00014235,2]
[331085623,1720072238248,-41855.0084855,0.00014235,2]
[331085624,1720072238257,-41855.0084855,0.00014235,2]
[331085625,1720072238267,-500.0,0.00014242,2]
[331085626,1720072238276,-500.0,0.00014243,2]
[331085627,1720072238287,-607.61,0.00014243,2]
[331085628,1720072238297,-500.0,0.00014243,2]
[331085629,1720072238306,-500.0,0.00014243,2]
[331085630,1720072238316,-500.0,0.00014243,2]
[331085631,1720072238326,-500.0,0.00014243,2]
[331085632,1720072238336,-500.0,0.00014243,2]
[331085633,1720072238345,-500.0,0.00014243,2]
[331085634,1720072238355,-500.0,0.00014243,2]
[331085635,1720072238365,-500.0,0.00014243,2]
[331085636,1720072238374,-500.0,0.00014243,2]
[331085637,1720072238384,-500.0,0.00014243,2]
[331085638,1720072238394,-504.77945916,0.00014243,2]
[331085639,1720072238404,-503.16572346,0.00014243,2]
[331085640,1720072238413,-505.32110935,0.00014243,2]
[331085641,1720072238423,-500.0,0.00014243,2]
[331085642,1720072238433,-503.90733195,0.00014243,2]
[331085643,1720072238443,-503.59347926,0.00014243,2]
[331085644,1720072238452,-500.0,0.00014243,2]
[331085645,1720072238463,-500.0,0.00014243,2]
[331085646,1720072238472,-504.30890535,0.00014243,2]
[331085647,1720072238482,-497.1566344,0.00014243,2]
[331085648,1720072238642,-500.0,0.00014243,2]
[331085649,1720072238653,-500.0,0.00014243,2]
[331085650,1720072238663,-500.0,0.00014243,2]
[331085651,1720072238672,-504.38404798,0.00014243,2]
[331085652,1720072238682,-500.0,0.00014243,2]
[331085653,1720072238691,-500.0,0.00014243,2]
[331085654,1720072238700,-500.0,0.00014243,2]
[331085655,1720072238710,-500.0,0.00014243,2]
[331085656,1720072238719,-500.0,0.00014243,2]
[331085657,1720072238728,-179.415589,0.00014243,2]
[331085658,1720072238737,-500.0,0.00014243,2]
[331085659,1720072238747,-500.0,0.00014243,2]
[331085660,1720072238756,-500.0,0.00014243,2]
[331085661,1720072238766,-517.2815086,0.00014243,2]
[331085662,1720072238775,-500.0,0.00014243,2]
[331085663,1720072238784,-500.0,0.00014243,2]
[331085664,1720072238794,-500.0,0.00014243,2]
[331085665,1720072238803,-500.0,0.00014243,2]
[331085666,1720072238813,-500.0,0.00014243,2]
[331085667,1720072238822,-500.0,0.00014243,2]
[331085668,1720072238833,-503.05682226,0.00014243,2]
[331085669,1720072238842,-500.0,0.00014243,2]
[331085670,1720072238851,-500.0,0.00014243,2]
[331085671,1720072238860,-500.0,0.00014243,2]
[331085672,1720072238870,-500.0,0.00014243,2]
[331085673,1720072238880,-500.0,0.00014243,2]
[331085674,1720072238889,-500.0,0.00014243,2]
[331085675,1720072238902,-500.0,0.00014243,2]
[331085676,1720072238912,-519.44,0.00014243,2]
[331085677,1720072238922,-500.0,0.00014243,2]
[331085678,1720072238931,-500.0,0.00014243,2]
[331085679,1720072238941,-505.87353338,0.00014243,2]
[331085680,1720072238950,-500.0,0.00014243,2]
[331085681,1720072238960,-500.0,0.00014243,2]
[331085682,1720072238971,-500.0,0.00014243,2]
[331085683,1720072238980,-500.0,0.00014243,2]
[331085684,1720072238990,-500.0,0.00014243,2]
[331085685,1720072239003,-500.0,0.00014243,2]
[331085686,1720072239012,-522.61977104,0.00014243,2]
[331085687,1720072239023,-3522.09,0.00014243,2]
[331085688,1720072239034,-500.0,0.00014243,2]
[331085689,1720072239044,-500.0,0.00014243,2]
[331085690,1720072239055,-500.0,0.00014243,2]
[331085691,1720072239066,-511.18468097,0.00014243,2]
[331085692,1720072239077,-507.28663487,0.00014243,2]
[331085693,1720072239087,-500.0,0.00014243,2]
[331085694,1720072239097,-500.0,0.00014243,2]
[331085695,1720072239108,-503.60821617,0.00014243,2]
[331085696,1720072239118,-500.0,0.00014243,2]
[331085697,1720072239128,-500.0,0.00014243,2]
[331085698,1720072239138,-500.0,0.00014243,2]
[331085699,1720072239148,-500.0,0.00014243,2]
[331085700,1720072239159,-542.04,0.00014243,2]
[331085701,1720072239168,-721.25,0.00014243,2]
[331085702,1720072239178,-500.0,0.00014243,2]
[331085703,1720072239189,-500.0,0.00014243,2]
[331085704,1720072239200,-500.0,0.00014243,2]
[331085705,1720072239210,-646.83,0.00014243,2]
[331085706,1720072239221,-500.0,0.00014243,2]
[331085707,1720072239231,-500.0,0.00014243,2]
[331085708,1720072239241,-394.077144,0.00014243,2]
[331085709,1720072239251,-188.62839726,0.00014243,2]
[331085710,1720072239261,-500.0,0.00014243,2]
[331085711,1720072239271,-154.82195475,0.00014243,2]
[331085712,1720072239280,-505.97604869,0.00014243,2]
[331085713,1720072239290,-500.0,0.00014243,2]
[331085714,1720072239299,-522.7,0.00014243,2]
[331085715,1720072239309,-500.0,0.00014243,2]
[331085716,1720072239319,-486.17017516,0.00014243,2]
[331085717,1720072239328,-502.20466651,0.00014243,2]
[331085718,1720072239338,-500.0,0.00014243,2]
[331085719,1720072239347,-196.03920964,0.00014243,2]
[331085720,1720072239356,-500.0,0.00014243,2]
[331085721,1720072239366,-500.0,0.00014243,2]
[331085722,1720072239375,-671.47,0.00014243,2]
[331085723,1720072239385,-545.52357463,0.00014243,2]
[331085724,1720072239394,-500.0,0.00014243,2]
[331085725,1720072239404,-283.07585689,0.00014243,2]
[331085726,1720072239414,-500.0,0.00014243,2]
[331085727,1720072239423,-518.87,0.00014243,2]
[331085728,1720072239433,-502.36667903,0.00014243,2]
[331085729,1720072239442,-500.0,0.00014243,2]
[331085730,1720072239452,-500.0,0.00014243,2]
[331085732,1720072239461,-500.0,0.00014243,2]
[331085734,1720072239472,-500.0,0.00014243,2]
[331085736,1720072239482,-500.0,0.00014243,2]
[331085738,1720072239492,-441.91774279,0.00014243,2]
[331085739,1720072239501,-500.0,0.00014243,2]
[331085740,1720072239511,-500.0,0.00014243,2]
[331085741,1720072239520,-500.0,0.00014243,2]
[331085742,1720072239530,-338.13041209,0.00014243,2]
[331085743,1720072239540,-503.35961836,0.00014243,2]
[331085744,1720072239549,-500.0,0.00014243,2]
[331085745,1720072239559,-500.0,0.00014243,2]
[331085747,1720072239569,-500.0,0.00014243,2]
[331085748,1720072239582,-500.0,0.00014243,2]
[331085749,1720072239592,-500.0,0.00014243,2]
[331085750,1720072239601,-500.0,0.00014243,2]
[331085751,1720072239610,-500.0,0.00014243,2]
[331085752,1720072239620,-500.0,0.00014243,2]
[331085753,1720072239629,-500.0,0.00014243,2]
[331085754,1720072239639,-500.0,0.00014243,2]
[331085755,1720072239648,-500.0,0.00014243,2]
[331085756,1720072239658,-500.0,0.00014243,2]
[331085757,1720072239669,-500.0,0.00014243,2]
[331085758,1720072239678,-500.0,0.00014243,2]
[331085759,1720072239687,-500.0,0.00014243,2]
[331085760,1720072239701,-500.0,0.00014243,2]
[331085761,1720072239716,-558.58851713,0.00014245,2]
[331085762,1720072239730,-500.0,0.00014245,2]
[331085763,1720072239744,-500.0,0.00014245,2]
[331085764,1720072239757,-500.0,0.00014245,2]
[331085765,1720072239770,-8298.56,0.00014245,2]
[331085766,1720072239783,-500.0,0.00014245,2]
[331085767,1720072239796,-500.0,0.00014245,2]
[331085768,1720072239809,-5243.54,0.00014255,2]
[331085769,1720072239823,-916.81,0.00014255,2]
[331085771,1720072239837,-210.17768559,0.00014255,2]
[331085773,1720072239852,-570.05,0.00014255,2]
[331085775,1720072239865,-794.11,0.00014255,2]
[331085777,1720072239879,-4452.92,0.00014255,2]
[331085778,1720072239891,-2441.77,0.00014255,2]
[331085779,1720072239904,-863.6092228,0.0001427,2]
[331085780,1720072239917,-863.6092228,0.00014338,2]
[331085781,1720072239929,-863.6092228,0.00014406,2]
[331085782,1720072239943,-199.06449606,0.00014417,2]
[331085784,1720072239955,-11888.0109289,0.00014437,2]
[331085786,1720072239967,-41855.0084855,0.00014488,2]
[331085787,1720072239978,-41855.0084855,0.00014496,2]
[331085788,1720072239989,-41855.0084855,0.00014497,2]
[331085789,1720072240001,-15803.860004,0.000145,2]
[331085790,1720072240012,-289.98546651,0.00014506,2]
[331085791,1720072240025,-500.0,0.00014506,2]
[331085792,1720072240037,-1607.19,0.00014506,2]
[331085793,1720072240051,-1922.96,0.00014506,2]
[331085794,1720072240063,-500.0,0.00014506,2]
[331085795,1720072240077,-500.0,0.00014506,2]
[331085796,1720072240091,-972.63,0.00014506,2]
[331085797,1720072240104,-500.0,0.00014506,2]
[331085798,1720072240115,-696.24,0.00014506,2]
[331085799,1720072240125,-500.0,0.00014506,2]
[331085800,1720072240135,-3387.21,0.00014506,2]
[331085801,1720072240147,-500.0,0.00014506,2]
[331085802,1720072240160,-1691.43,0.00014506,2]
[331085803,1720072240172,-178.65620496,0.00014506,2]
[331085804,1720072240185,-500.0,0.00014506,2]
[331085805,1720072240196,-500.0,0.00014506,2]
[331085806,1720072240206,-500.0,0.00014506,2]
[331085808,1720072240217,-10013.52,0.00014506,2]
[331085809,1720072240229,-270.82378399,0.00014506,2]
[331085810,1720072240242,-500.0,0.00014506,2]
[331085811,1720072240253,-1210.6,0.00014506,2]
[331085812,1720072240263,-1088.81,0.00014506,2]
[331085813,1720072240274,-2266.37,0.00014506,2]
[331085814,1720072240285,-500.0,0.00014506,2]
[331085815,1720072240296,-732.58,0.00014506,2]
[331085816,1720072240306,-3458.03,0.00014506,2]
[331085817,1720072240318,-509.50256274,0.00014506,2]
[331085818,1720072240329,-500.0,0.00014506,2]
[331085819,1720072240341,-573.14,0.00014506,2]
[331085820,1720072240352,-372.98791134,0.00014506,2]
[331085821,1720072240365,-500.0,0.00014506,2]
[331085822,1720072240376,-500.0,0.00014506,2]
[331085823,1720072240388,-500.0,0.00014506,2]
[331085824,1720072240399,-500.0,0.00014506,2]
[331085825,1720072240411,-502.78730563,0.00014506,2]
[331085826,1720072240421,-481.0386752,0.00014506,2]
[331085827,1720072240433,-500.0,0.00014506,2]
[331085828,1720072240444,-902.65,0.00014508,2]
[331085829,1720072240455,-500.0,0.00014508,2]
[331085830,1720072240467,-500.0,0.00014508,2]
[331085831,1720072240478,-500.0,0.00014508,2]
[331085832,1720072240489,-1290.86,0.00014508,2]
[331085833,1720072240499,-500.0,0.00014508,2]
[331085834,1720072240511,-451.78659027,0.00014508,2]
[331085835,1720072240522,-500.0,0.00014508,2]
[331085836,1720072240533,-746.49,0.00014508,2]
[331085837,1720072240545,-1084.07,0.00014508,2]
[331085838,1720072240556,-500.0,0.00014508,2]
[331085839,1720072240566,-500.0,0.00014508,2]
[331085840,1720072240580,-638.65,0.00014508,2]
[331085841,1720072240592,-553.11,0.00014508,2]
[331085842,1720072240603,-500.0,0.00014508,2]
[331085843,1720072240615,-500.0,0.00014508,2]
[331085844,1720072240626,-500.0,0.00014508,2]
[331085845,1720072240636,-500.0,0.00014508,2]
[331085846,1720072240648,-500.0,0.00014508,2]
[331085847,1720072240660,-500.0,0.00014508,2]
[331085848,1720072240671,-447.1217842,0.00014508,2]
[331085849,1720072240683,-500.0,0.00014508,2]
[331085850,1720072240695,-500.0,0.00014508,2]
[331085851,1720072240706,-530.25,0.00014508,2]
[331085852,1720072240717,-500.0,0.00014508,2]
[331085853,1720072240728,-500.0,0.00014508,2]
[331085854,1720072240739,-500.0,0.00014508,2]
[331085855,1720072240751,-500.0,0.00014508,2]
[331085856,1720072240763,-500.0,0.00014508,2]
[331085857,1720072240775,-500.0,0.00014508,2]
[331085858,1720072240787,-2075.83,0.00014508,2]
[331085859,1720072240799,-500.0,0.00014508,2]
[331085860,1720072240810,-700.33,0.00014508,2]
[331085861,1720072240821,-500.0,0.00014508,2]
[331085862,1720072240833,-745.51,0.00014508,2]
[331085863,1720072240844,-500.0,0.00014508,2]
[331085864,1720072240856,-774.79,0.00014508,2]
[331085865,1720072240867,-500.0,0.00014508,2]
[331085866,1720072240878,-583.74,0.00014508,2]
[331085867,1720072240890,-500.0,0.00014508,2]
[331085868,1720072240901,-500.0,0.00014508,2]
[331085869,1720072240912,-500.0,0.00014508,2]
[331085870,1720072240924,-500.0,0.00014508,2]
[331085871,1720072240936,-500.0,0.00014508,2]
[331085872,1720072240948,-500.0,0.00014508,2]
[331085873,1720072240961,-1002.68,0.00014508,2]
[331085874,1720072240972,-7954.05,0.00014508,2]
[331085875,1720072240984,-500.0,0.00014508,2]
[331085876,1720072240992,-500.0,0.00014508,2]
[331085877,1720072241002,-356.35727033,0.00014517,2]
[331085878,1720072241149,-607.61,0.00014517,2]
[331085879,1720072241166,-510.72346099,0.00014517,2]
[331085880,1720072241177,-500.0,0.00014517,2]
[331085881,1720072241186,-500.0,0.00014517,2]
[331085882,1720072241195,-500.0,0.00014517,2]
[331085883,1720072241204,-500.0,0.00014517,2]
[331085884,1720072241212,-500.0,0.00014517,2]
[331085885,1720072241222,-500.0,0.00014517,2]
[331085886,1720072241231,-514.79414028,0.00014517,2]
[331085887,1720072241241,-500.0,0.00014517,2]
[331085888,1720072241250,-500.0,0.00014517,2]
[331085889,1720072241259,-500.0,0.00014517,2]
[331085890,1720072241268,-510.33142613,0.00014517,2]
[331085891,1720072241277,-500.0,0.00014517,2]
[331085892,1720072241286,-500.0,0.00014517,2]
[331085893,1720072241295,-500.0,0.00014517,2]
[331085894,1720072241304,-500.0,0.00014517,2]
[331085895,1720072241314,-500.0,0.00014517,2]
[331085896,1720072241323,-500.0,0.00014517,2]
[331085897,1720072241332,-500.0,0.00014517,2]
[331085898,1720072241341,-500.0,0.00014517,2]
[331085899,1720072241350,-500.0,0.00014517,2]
[331085900,1720072241360,-500.0,0.00014517,2]
[331085901,1720072241369,-500.0,0.00014517,2]
[331085902,1720072241378,-500.0,0.00014517,2]
[331085903,1720072241387,-500.0,0.00014517,2]
[331085904,1720072241396,-500.0,0.00014517,2]
[331085905,1720072241405,-500.0,0.00014517,2]
[331085906,1720072241414,-500.0,0.00014517,2]
[331085907,1720072241423,-517.22953442,0.00014517,2]
[331085908,1720072241432,-500.0,0.00014517,2]
[331085909,1720072241440,-500.0,0.00014517,2]
[331085910,1720072241449,-504.82598237,0.00014517,2]
[331085911,1720072241459,-519.44,0.00014517,2]
[331085912,1720072241468,-500.0,0.00014517,2]
[331085913,1720072241476,-199.22392977,0.00014517,2]
[331085914,1720072241485,-475.65215327,0.00014517,2]
[331085915,1720072241495,-500.0,0.00014517,2]
[331085916,1720072241503,-500.0,0.00014517,2]
[331085917,1720072241512,-500.0,0.00014517,2]
[331085918,1720072241522,-500.0,0.00014517,2]
[331085919,1720072241531,-3522.09,0.00014517,2]
[331085920,1720072241539,-500.0,0.00014517,2]
[331085921,1720072241548,-500.0,0.00014517,2]
[331085922,1720072241557,-500.0,0.00014517,2]
[331085923,1720072241566,-500.0,0.00014517,2]
[331085924,1720072241578,-500.0,0.00014517,2]
[331085925,1720072241587,-500.0,0.00014517,2]
[331085926,1720072241595,-500.0,0.00014517,2]
[331085927,1720072241604,-542.04,0.00014517,2]
[331085928,1720072241615,-721.25,0.00014517,2]
[331085929,1720072241624,-500.0,0.00014517,2]
[331085930,1720072241632,-203.35329202,0.00014517,2]
[331085931,1720072241641,-500.0,0.00014517,2]
[331085932,1720072241651,-646.83,0.00014517,2]
[331085933,1720072241660,-500.0,0.00014517,2]
[331085934,1720072241670,-500.0,0.00014517,2]
[331085935,1720072241679,-500.0,0.00014517,2]
[331085936,1720072241687,-522.7,0.00014517,2]
[331085937,1720072241697,-500.0,0.00014517,2]
[331085938,1720072241705,-508.48562342,0.00014517,2]
[331085939,1720072241714,-510.54836412,0.00014517,2]
[331085940,1720072241723,-671.47,0.00014517,2]
[331085941,1720072241732,-500.0,0.00014517,2]
[331085942,1720072241742,-500.0,0.00014517,2]
[331085943,1720072241751,-518.87,0.00014517,2]
[331085944,1720072241759,-500.0,0.00014517,2]
[331085945,1720072241769,-500.0,0.00014517,2]
[331085946,1720072241778,-500.0,0.00014517,2]
[331085947,1720072241789,-500.0,0.00014517,2]
[331085948,1720072241798,-500.0,0.00014517,2]
[331085949,1720072241807,-500.0,0.00014517,2]
[331085950,1720072241816,-500.0,0.00014517,2]
[331085951,1720072241826,-500.0,0.00014517,2]
[331085952,1720072241837,-500.0,0.00014517,2]
[331085953,1720072241847,-500.0,0.00014517,2]
[331085954,1720072241857,-500.0,0.00014517,2]
[331085955,1720072241867,-500.0,0.00014517,2]
[331085956,1720072241876,-500.0,0.00014517,2]
[331085957,1720072241886,-500.0,0.00014517,2]
[331085958,1720072241895,-500.0,0.00014517,2]
[331085959,1720072241903,-500.0,0.00014517,2]
[331085960,1720072241912,-500.0,0.00014517,2]
[331085961,1720072241922,-500.0,0.00014517,2]
[331085962,1720072241931,-500.0,0.00014517,2]
[331085963,1720072241940,-500.0,0.00014517,2]
[331085964,1720072241950,-500.0,0.00014517,2]
[331085965,1720072241959,-500.0,0.00014517,2]
[331085966,1720072241968,-500.0,0.00014517,2]
[331085967,1720072241977,-500.0,0.00014519,2]
[331085968,1720072241986,-500.0,0.00014519,2]
[331085969,1720072241995,-500.0,0.00014519,2]
[331085970,1720072242004,-8298.56,0.00014519,2]
[331085971,1720072242014,-500.0,0.00014519,2]
[331085972,1720072242023,-500.0,0.00014519,2]
[331085973,1720072242032,-5243.54,0.00014529,2]
[331085974,1720072242041,-916.81,0.00014529,2]
[331085975,1720072242050,-570.05,0.00014529,2]
[331085976,1720072242059,-794.11,0.00014529,2]
[331085977,1720072242069,-4452.92,0.00014529,2]
[331085978,1720072242078,-2441.77,0.00014529,2]
[331085979,1720072242087,-500.0,0.0001478,2]
[331085980,1720072242096,-1607.19,0.0001478,2]
[331085981,1720072242105,-1922.96,0.0001478,2]
[331085982,1720072242114,-500.0,0.0001478,2]
[331085983,1720072242123,-500.0,0.0001478,2]
[331085984,1720072242132,-972.63,0.0001478,2]
[331085985,1720072242142,-408.82,0.0001478,2]
[331085986,1720072242151,-696.24,0.0001478,2]
[331085987,1720072242160,-500.0,0.0001478,2]
[331085988,1720072242169,-3387.21,0.0001478,2]
[331085989,1720072242178,-500.0,0.0001478,2]
[331085990,1720072242188,-1691.43,0.0001478,2]
[331085991,1720072242198,-500.0,0.0001478,2]
[331085992,1720072242207,-500.0,0.0001478,2]
[331085993,1720072242217,-390.46832177,0.0001478,2]
[331085994,1720072242226,-10013.52,0.0001478,2]
[331085995,1720072242236,-614.04872408,0.0001478,2]
[331085996,1720072242246,-1210.6,0.0001478,2]
[331085997,1720072242258,-1088.81,0.0001478,2]
[331085998,1720072242267,-2266.37,0.0001478,2]
[331085999,1720072242276,-500.0,0.0001478,2]
[331086000,1720072242286,-732.58,0.0001478,2]
[331086001,1720072242295,-3458.03,0.0001478,2]
[331086002,1720072242304,-500.0,0.0001478,2]
[331086003,1720072242314,-573.14,0.0001478,2]
[331086004,1720072242323,-500.0,0.0001478,2]
[331086005,1720072242332,-500.0,0.0001478,2]
[331086006,1720072242342,-500.0,0.0001478,2]
[331086007,1720072242352,-500.0,0.0001478,2]
[331086008,1720072242361,-500.0,0.0001478,2]
[331086010,1720072242370,-902.65,0.00014782,2]
[331086011,1720072242380,-500.0,0.00014782,2]
[331086013,1720072242389,-500.0,0.00014782,2]
[331086014,1720072242399,-500.0,0.00014782,2]
[331086015,1720072242408,-1290.86,0.00014782,2]
[331086016,1720072242417,-500.0,0.00014782,2]
[331086017,1720072242426,-500.0,0.00014782,2]
[331086018,1720072242436,-746.49,0.00014782,2]
[331086019,1720072242445,-1084.07,0.00014782,2]
[331086021,1720072242454,-500.0,0.00014782,2]
[331086022,1720072242463,-500.0,0.00014782,2]
[331086023,1720072242474,-638.65,0.00014782,2]
[331086024,1720072242483,-553.11,0.00014782,2]
[331086025,1720072242492,-500.0,0.00014782,2]
[331086026,1720072242501,-500.0,0.00014782,2]
[331086027,1720072242510,-500.0,0.00014782,2]
[331086028,1720072242520,-500.0,0.00014782,2]
[331086029,1720072242529,-500.0,0.00014782,2]
[331086030,1720072242539,-500.0,0.00014782,2]
[331086032,1720072242548,-500.0,0.00014782,2]
[331086034,1720072242557,-500.0,0.00014782,2]
[331086035,1720072242567,-530.25,0.00014782,2]
[331086036,1720072242578,-500.0,0.00014782,2]
[331086037,1720072242589,-500.0,0.00014782,2]
[331086038,1720072242598,-500.0,0.00014782,2]
[331086039,1720072242607,-500.0,0.00014782,2]
[331086040,1720072242619,-500.0,0.00014782,2]
[331086041,1720072242628,-500.0,0.00014782,2]
[331086042,1720072242637,-500.0,0.00014782,2]
[331086043,1720072242646,-2075.83,0.00014782,2]
[331086044,1720072242656,-700.33,0.00014782,2]
[331086045,1720072242666,-500.0,0.00014782,2]
[331086046,1720072242675,-745.51,0.00014782,2]
[331086047,1720072242684,-500.0,0.00014782,2]
[331086048,1720072242693,-774.79,0.00014782,2]
[331086049,1720072242703,-500.0,0.00014782,2]
[331086050,1720072242711,-583.74,0.00014782,2]
[331086051,1720072242724,-282.88312774,0.00014782,2]
[331086052,1720072242733,-500.0,0.00014782,2]
[331086053,1720072242741,-518.75977937,0.00014782,2]
[331086054,1720072242754,-500.0,0.00014782,2]
[331086056,1720072242763,-500.0,0.00014782,2]
[331086058,1720072242772,-500.0,0.00014782,2]
[331086059,1720072242781,-1002.68,0.00014782,2]
[331086060,1720072242791,-7954.05,0.00014782,2]
[331086061,1720072242800,-500.0,0.00014782,2]
[331086062,1720072242809,-500.0,0.00014782,2]
[331086063,1720072242818,-607.61,0.00014791,2]
[331086064,1720072242827,-500.0,0.00014791,2]
[331086065,1720072242837,-422.97963733,0.00014791,2]
[331086066,1720072242847,-500.0,0.00014791,2]
[331086067,1720072242856,-490.82196108,0.00014791,2]
[331086068,1720072242865,-500.0,0.00014791,2]
[331086069,1720072242874,-500.0,0.00014791,2]
[331086070,1720072242883,-500.0,0.00014791,2]
[331086071,1720072242892,-500.0,0.00014791,2]
[331086072,1720072242902,-500.0,0.00014791,2]
[331086073,1720072242912,-500.0,0.00014791,2]
[331086074,1720072242921,-500.0,0.00014791,2]
[331086075,1720072242931,-500.0,0.00014791,2]
[331086076,1720072242940,-500.0,0.00014791,2]
[331086077,1720072242949,-500.0,0.00014791,2]
[331086078,1720072242959,-500.0,0.00014791,2]
[331086079,1720072242969,-193.98649616,0.00014791,2]
[331086080,1720072242978,-500.0,0.00014791,2]
[331086081,1720072242987,-500.0,0.00014791,2]
[331086082,1720072242996,-234.07913535,0.00014791,2]
[331086083,1720072243005,-500.0,0.00014791,2]
[331086084,1720072243014,-500.0,0.00014791,2]
[331086085,1720072243024,-500.0,0.00014791,2]
[331086086,1720072243033,-500.0,0.00014791,2]
[331086087,1720072243042,-500.0,0.00014791,2]